{"text_format":"3","workbook":"xlsx","n_sheets":4,"sheets":["Resumo","Totais","Receita","Despesas"],"not_rendered":{"defined_names":13},"read":"whole","date_system":"1900"}

{"sheet":"Resumo","index":0,"n_rows":6,"n_cols":3,"rows_kept":6,"merged":[[0,1,0,2],[1,1,1,2]]}
[null,"ORÇAMENTO FAMILIAR MENSAL"]
[null,"RESUMO"]
[null,"Saldo","Valor"]
[null,"Saldo projetado (receita projetada menos despesas)",{"$f":"ReceitaProjetada-DespesasProjetadas","v":{"v":1114,"d":"R$ 1,114"}}]
[null,"Saldo real (receita real menos despesas)",{"$f":"ReceitaReal-DespesasReais","v":{"v":997,"d":"R$ 997"}}]
[null,"Diferença (real menos projetada)",{"$f":"SaldoReal-SaldoProjetado","v":{"v":-117,"d":"-R$ 117"}}]

{"sheet":"Totais","index":1,"n_rows":6,"n_cols":3,"rows_kept":6,"merged":[[0,1,0,2],[1,1,1,2]]}
[null,{"$f":"Título_Da_Pasta_De_Trabalho","v":"ORÇAMENTO FAMILIAR MENSAL"}]
[null,"Totais"]
[null,"Totais","Valor"]
[null,"Custo total projetado",{"$f":"DespesasProjetadas","v":{"v":4486,"d":"R$ 4,486"}}]
[null,"Custo total real",{"$f":"DespesasReais","v":{"v":4603,"d":"R$ 4,603"}}]
[null,"Diferença total",{"$f":"C4-C5","v":{"v":-117,"d":"-R$ 117"}}]

{"sheet":"Receita","index":2,"n_rows":7,"n_cols":5,"rows_kept":7,"merged":[[0,1,0,4],[1,1,1,4]]}
[null,{"$f":"Título_Da_Pasta_De_Trabalho","v":"ORÇAMENTO FAMILIAR MENSAL"}]
[null,"RECEITA"]
[null,"Receita projetada","Projetada","Real","Diferença"]
[null,"Receita 1",{"v":4000,"d":"R$ 4,000.00"},{"v":4000,"d":"R$ 4,000.00"},{"$f":"TabelaDeReceita[[#This Row],[Projetada]]-TabelaDeReceita[[#This Row],[Real]]","v":{"v":0,"d":"R$ 0.00"}}]
[null,"Renda 2",{"v":1300,"d":"R$ 1,300.00"},{"v":1300,"d":"R$ 1,300.00"},{"$f":"TabelaDeReceita[[#This Row],[Projetada]]-TabelaDeReceita[[#This Row],[Real]]","v":{"v":0,"d":"R$ 0.00"}}]
[null,"Receita extra",{"v":300,"d":"R$ 300.00"},{"v":300,"d":"R$ 300.00"},{"$f":"TabelaDeReceita[[#This Row],[Projetada]]-TabelaDeReceita[[#This Row],[Real]]","v":{"v":0,"d":"R$ 0.00"}}]
[null,"Receita mensal total",{"$f":"SUBTOTAL(109,TabelaDeReceita[Projetada])","v":{"v":5600,"d":"R$ 5,600.00"}},{"$f":"SUBTOTAL(109,TabelaDeReceita[Real])","v":{"v":5600,"d":"R$ 5,600.00"}},{"$f":"SUBTOTAL(109,TabelaDeReceita[Diferença])","v":{"v":0,"d":"R$ 0.00"}}]

{"sheet":"Despesas","index":3,"n_rows":80,"n_cols":6,"rows_kept":80,"merged":[[0,1,0,5],[1,1,1,5],[2,1,2,5]]}
[null,{"$f":"Título_Da_Pasta_De_Trabalho","v":"ORÇAMENTO FAMILIAR MENSAL"}]
[null,"DESPESAS"]
[null,"A segmentação para filtrar a tabela Despesas por categoria está nesta célula."]
[null,"Categoria","Subcategoria","Projetada","Real","Diferença"]
[null,"Moradia","Hipoteca ou aluguel",{"v":1000,"d":"R$ 1,000.00"},{"v":1000,"d":"R$ 1,000.00"},{"$f":"TabelaDeDespesas[[#This Row],[Projetada]]-TabelaDeDespesas[[#This Row],[Real]]","v":{"v":0,"d":"R$ 0.00"}}]
[null,"Moradia","Segunda hipoteca ou aluguel",{"v":0,"d":"R$ 0.00"},{"v":0,"d":"R$ 0.00"},{"$f":"TabelaDeDespesas[[#This Row],[Projetada]]-TabelaDeDespesas[[#This Row],[Real]]","v":{"v":0,"d":"R$ 0.00"}}]
[null,"Moradia","Telefone",{"v":54,"d":"R$ 54.00"},{"v":100,"d":"R$ 100.00"},{"$f":"TabelaDeDespesas[[#This Row],[Projetada]]-TabelaDeDespesas[[#This Row],[Real]]","v":{"v":-46,"d":"-R$ 46.00"}}]
[null,"Moradia","Conta de luz",{"v":44,"d":"R$ 44.00"},{"v":56,"d":"R$ 56.00"},{"$f":"TabelaDeDespesas[[#This Row],[Projetada]]-TabelaDeDespesas[[#This Row],[Real]]","v":{"v":-12,"d":"-R$ 12.00"}}]
[null,"Moradia","Gás",{"v":22,"d":"R$ 22.00"},{"v":28,"d":"R$ 28.00"},{"$f":"TabelaDeDespesas[[#This Row],[Projetada]]-TabelaDeDespesas[[#This Row],[Real]]","v":{"v":-6,"d":"-R$ 6.00"}}]
[null,"Moradia","Água e esgoto",{"v":8,"d":"R$ 8.00"},{"v":8,"d":"R$ 8.00"},{"$f":"TabelaDeDespesas[[#This Row],[Projetada]]-TabelaDeDespesas[[#This Row],[Real]]","v":{"v":0,"d":"R$ 0.00"}}]
[null,"Moradia","TV a cabo",{"v":34,"d":"R$ 34.00"},{"v":34,"d":"R$ 34.00"},{"$f":"TabelaDeDespesas[[#This Row],[Projetada]]-TabelaDeDespesas[[#This Row],[Real]]","v":{"v":0,"d":"R$ 0.00"}}]
[null,"Moradia","Coleta de lixo",{"v":10,"d":"R$ 10.00"},{"v":10,"d":"R$ 10.00"},{"$f":"TabelaDeDespesas[[#This Row],[Projetada]]-TabelaDeDespesas[[#This Row],[Real]]","v":{"v":0,"d":"R$ 0.00"}}]
[null,"Moradia","Manutenção ou reparos",{"v":23,"d":"R$ 23.00"},{"v":0,"d":"R$ 0.00"},{"$f":"TabelaDeDespesas[[#This Row],[Projetada]]-TabelaDeDespesas[[#This Row],[Real]]","v":{"v":23,"d":"R$ 23.00"}}]
[null,"Moradia","Suprimentos",{"v":0,"d":"R$ 0.00"},{"v":0,"d":"R$ 0.00"},{"$f":"TabelaDeDespesas[[#This Row],[Projetada]]-TabelaDeDespesas[[#This Row],[Real]]","v":{"v":0,"d":"R$ 0.00"}}]
[null,"Moradia","Outros",{"v":0,"d":"R$ 0.00"},{"v":0,"d":"R$ 0.00"},{"$f":"TabelaDeDespesas[[#This Row],[Projetada]]-TabelaDeDespesas[[#This Row],[Real]]","v":{"v":0,"d":"R$ 0.00"}}]
[null,"Transporte","Pagamento do veículo 1",{"v":16,"d":"R$ 16.00"},{"v":66,"d":"R$ 66.00"},{"$f":"TabelaDeDespesas[[#This Row],[Projetada]]-TabelaDeDespesas[[#This Row],[Real]]","v":{"v":-50,"d":"-R$ 50.00"}}]
[null,"Transporte","Pagamento de veículo 2",{"v":35,"d":"R$ 35.00"},{"v":42,"d":"R$ 42.00"},{"$f":"TabelaDeDespesas[[#This Row],[Projetada]]-TabelaDeDespesas[[#This Row],[Real]]","v":{"v":-7,"d":"-R$ 7.00"}}]
[null,"Transporte","Tarifa de ônibus/táxi",{"v":1,"d":"R$ 1.00"},{"v":62,"d":"R$ 62.00"},{"$f":"TabelaDeDespesas[[#This Row],[Projetada]]-TabelaDeDespesas[[#This Row],[Real]]","v":{"v":-61,"d":"-R$ 61.00"}}]
[null,"Transporte","Seguro",{"v":91,"d":"R$ 91.00"},{"v":27,"d":"R$ 27.00"},{"$f":"TabelaDeDespesas[[#This Row],[Projetada]]-TabelaDeDespesas[[#This Row],[Real]]","v":{"v":64,"d":"R$ 64.00"}}]
[null,"Transporte","Licenciamento",{"v":80,"d":"R$ 80.00"},{"v":89,"d":"R$ 89.00"},{"$f":"TabelaDeDespesas[[#This Row],[Projetada]]-TabelaDeDespesas[[#This Row],[Real]]","v":{"v":-9,"d":"-R$ 9.00"}}]
[null,"Transporte","Combustível",{"v":18,"d":"R$ 18.00"},{"v":93,"d":"R$ 93.00"},{"$f":"TabelaDeDespesas[[#This Row],[Projetada]]-TabelaDeDespesas[[#This Row],[Real]]","v":{"v":-75,"d":"-R$ 75.00"}}]
[null,"Transporte","Manutenção",{"v":34,"d":"R$ 34.00"},{"v":37,"d":"R$ 37.00"},{"$f":"TabelaDeDespesas[[#This Row],[Projetada]]-TabelaDeDespesas[[#This Row],[Real]]","v":{"v":-3,"d":"-R$ 3.00"}}]
[null,"Transporte","Outros",{"v":83,"d":"R$ 83.00"},{"v":61,"d":"R$ 61.00"},{"$f":"TabelaDeDespesas[[#This Row],[Projetada]]-TabelaDeDespesas[[#This Row],[Real]]","v":{"v":22,"d":"R$ 22.00"}}]
[null,"Seguro","Casa",{"v":48,"d":"R$ 48.00"},{"v":63,"d":"R$ 63.00"},{"$f":"TabelaDeDespesas[[#This Row],[Projetada]]-TabelaDeDespesas[[#This Row],[Real]]","v":{"v":-15,"d":"-R$ 15.00"}}]
[null,"Seguro","Saúde",{"v":21,"d":"R$ 21.00"},{"v":44,"d":"R$ 44.00"},{"$f":"TabelaDeDespesas[[#This Row],[Projetada]]-TabelaDeDespesas[[#This Row],[Real]]","v":{"v":-23,"d":"-R$ 23.00"}}]
[null,"Seguro","Vida",{"v":35,"d":"R$ 35.00"},{"v":65,"d":"R$ 65.00"},{"$f":"TabelaDeDespesas[[#This Row],[Projetada]]-TabelaDeDespesas[[#This Row],[Real]]","v":{"v":-30,"d":"-R$ 30.00"}}]
[null,"Seguro","Outros",{"v":14,"d":"R$ 14.00"},{"v":75,"d":"R$ 75.00"},{"$f":"TabelaDeDespesas[[#This Row],[Projetada]]-TabelaDeDespesas[[#This Row],[Real]]","v":{"v":-61,"d":"-R$ 61.00"}}]
[null,"Alimentação","Supermercado",{"v":79,"d":"R$ 79.00"},{"v":0,"d":"R$ 0.00"},{"$f":"TabelaDeDespesas[[#This Row],[Projetada]]-TabelaDeDespesas[[#This Row],[Real]]","v":{"v":79,"d":"R$ 79.00"}}]
[null,"Alimentação","Jantar fora",{"v":56,"d":"R$ 56.00"},{"v":50,"d":"R$ 50.00"},{"$f":"TabelaDeDespesas[[#This Row],[Projetada]]-TabelaDeDespesas[[#This Row],[Real]]","v":{"v":6,"d":"R$ 6.00"}}]
[null,"Alimentação","Outros",{"v":96,"d":"R$ 96.00"},{"v":23,"d":"R$ 23.00"},{"$f":"TabelaDeDespesas[[#This Row],[Projetada]]-TabelaDeDespesas[[#This Row],[Real]]","v":{"v":73,"d":"R$ 73.00"}}]
[null,"Filhos","Médico",{"v":90,"d":"R$ 90.00"},{"v":90,"d":"R$ 90.00"},{"$f":"TabelaDeDespesas[[#This Row],[Projetada]]-TabelaDeDespesas[[#This Row],[Real]]","v":{"v":0,"d":"R$ 0.00"}}]
[null,"Filhos","Vestuário",{"v":33,"d":"R$ 33.00"},{"v":30,"d":"R$ 30.00"},{"$f":"TabelaDeDespesas[[#This Row],[Projetada]]-TabelaDeDespesas[[#This Row],[Real]]","v":{"v":3,"d":"R$ 3.00"}}]
[null,"Filhos","Mensalidade escolar",{"v":86,"d":"R$ 86.00"},{"v":64,"d":"R$ 64.00"},{"$f":"TabelaDeDespesas[[#This Row],[Projetada]]-TabelaDeDespesas[[#This Row],[Real]]","v":{"v":22,"d":"R$ 22.00"}}]
[null,"Filhos","Material escolar",{"v":76,"d":"R$ 76.00"},{"v":2,"d":"R$ 2.00"},{"$f":"TabelaDeDespesas[[#This Row],[Projetada]]-TabelaDeDespesas[[#This Row],[Real]]","v":{"v":74,"d":"R$ 74.00"}}]
[null,"Filhos","Impostos ou taxas de organização",{"v":60,"d":"R$ 60.00"},{"v":90,"d":"R$ 90.00"},{"$f":"TabelaDeDespesas[[#This Row],[Projetada]]-TabelaDeDespesas[[#This Row],[Real]]","v":{"v":-30,"d":"-R$ 30.00"}}]
[null,"Filhos","Dinheiro para almoço",{"v":37,"d":"R$ 37.00"},{"v":60,"d":"R$ 60.00"},{"$f":"TabelaDeDespesas[[#This Row],[Projetada]]-TabelaDeDespesas[[#This Row],[Real]]","v":{"v":-23,"d":"-R$ 23.00"}}]
[null,"Filhos","Creche",{"v":22,"d":"R$ 22.00"},{"v":70,"d":"R$ 70.00"},{"$f":"TabelaDeDespesas[[#This Row],[Projetada]]-TabelaDeDespesas[[#This Row],[Real]]","v":{"v":-48,"d":"-R$ 48.00"}}]
[null,"Filhos","Brinquedos/jogos",{"v":80,"d":"R$ 80.00"},{"v":21,"d":"R$ 21.00"},{"$f":"TabelaDeDespesas[[#This Row],[Projetada]]-TabelaDeDespesas[[#This Row],[Real]]","v":{"v":59,"d":"R$ 59.00"}}]
[null,"Filhos","Outros",{"v":65,"d":"R$ 65.00"},{"v":20,"d":"R$ 20.00"},{"$f":"TabelaDeDespesas[[#This Row],[Projetada]]-TabelaDeDespesas[[#This Row],[Real]]","v":{"v":45,"d":"R$ 45.00"}}]
[null,"Animais de estimação","Alimentação",{"v":37,"d":"R$ 37.00"},{"v":34,"d":"R$ 34.00"},{"$f":"TabelaDeDespesas[[#This Row],[Projetada]]-TabelaDeDespesas[[#This Row],[Real]]","v":{"v":3,"d":"R$ 3.00"}}]
[null,"Animais de estimação","Médico",{"v":74,"d":"R$ 74.00"},{"v":86,"d":"R$ 86.00"},{"$f":"TabelaDeDespesas[[#This Row],[Projetada]]-TabelaDeDespesas[[#This Row],[Real]]","v":{"v":-12,"d":"-R$ 12.00"}}]
[null,"Animais de estimação","Banho e tosa",{"v":80,"d":"R$ 80.00"},{"v":92,"d":"R$ 92.00"},{"$f":"TabelaDeDespesas[[#This Row],[Projetada]]-TabelaDeDespesas[[#This Row],[Real]]","v":{"v":-12,"d":"-R$ 12.00"}}]
[null,"Animais de estimação","Brinquedos",{"v":61,"d":"R$ 61.00"},{"v":22,"d":"R$ 22.00"},{"$f":"TabelaDeDespesas[[#This Row],[Projetada]]-TabelaDeDespesas[[#This Row],[Real]]","v":{"v":39,"d":"R$ 39.00"}}]
[null,"Animais de estimação","Outros",{"v":83,"d":"R$ 83.00"},{"v":51,"d":"R$ 51.00"},{"$f":"TabelaDeDespesas[[#This Row],[Projetada]]-TabelaDeDespesas[[#This Row],[Real]]","v":{"v":32,"d":"R$ 32.00"}}]
[null,"Cuidados pessoais","Médico",{"v":28,"d":"R$ 28.00"},{"v":10,"d":"R$ 10.00"},{"$f":"TabelaDeDespesas[[#This Row],[Projetada]]-TabelaDeDespesas[[#This Row],[Real]]","v":{"v":18,"d":"R$ 18.00"}}]
[null,"Cuidados pessoais","Cabelo/unhas",{"v":25,"d":"R$ 25.00"},{"v":81,"d":"R$ 81.00"},{"$f":"TabelaDeDespesas[[#This Row],[Projetada]]-TabelaDeDespesas[[#This Row],[Real]]","v":{"v":-56,"d":"-R$ 56.00"}}]
[null,"Cuidados pessoais","Vestuário",{"v":59,"d":"R$ 59.00"},{"v":72,"d":"R$ 72.00"},{"$f":"TabelaDeDespesas[[#This Row],[Projetada]]-TabelaDeDespesas[[#This Row],[Real]]","v":{"v":-13,"d":"-R$ 13.00"}}]
[null,"Cuidados pessoais","Lavagem a seco",{"v":89,"d":"R$ 89.00"},{"v":90,"d":"R$ 90.00"},{"$f":"TabelaDeDespesas[[#This Row],[Projetada]]-TabelaDeDespesas[[#This Row],[Real]]","v":{"v":-1,"d":"-R$ 1.00"}}]
[null,"Cuidados pessoais","Academia",{"v":78,"d":"R$ 78.00"},{"v":48,"d":"R$ 48.00"},{"$f":"TabelaDeDespesas[[#This Row],[Projetada]]-TabelaDeDespesas[[#This Row],[Real]]","v":{"v":30,"d":"R$ 30.00"}}]
[null,"Cuidados pessoais","Impostos ou taxas de organização",{"v":6,"d":"R$ 6.00"},{"v":73,"d":"R$ 73.00"},{"$f":"TabelaDeDespesas[[#This Row],[Projetada]]-TabelaDeDespesas[[#This Row],[Real]]","v":{"v":-67,"d":"-R$ 67.00"}}]
[null,"Cuidados pessoais","Outros",{"v":80,"d":"R$ 80.00"},{"v":66,"d":"R$ 66.00"},{"$f":"TabelaDeDespesas[[#This Row],[Projetada]]-TabelaDeDespesas[[#This Row],[Real]]","v":{"v":14,"d":"R$ 14.00"}}]
[null,"Entretenimento","Vídeo/DVD",{"v":11,"d":"R$ 11.00"},{"v":29,"d":"R$ 29.00"},{"$f":"TabelaDeDespesas[[#This Row],[Projetada]]-TabelaDeDespesas[[#This Row],[Real]]","v":{"v":-18,"d":"-R$ 18.00"}}]
[null,"Entretenimento","CDs",{"v":77,"d":"R$ 77.00"},{"v":32,"d":"R$ 32.00"},{"$f":"TabelaDeDespesas[[#This Row],[Projetada]]-TabelaDeDespesas[[#This Row],[Real]]","v":{"v":45,"d":"R$ 45.00"}}]
[null,"Entretenimento","Filmes",{"v":71,"d":"R$ 71.00"},{"v":43,"d":"R$ 43.00"},{"$f":"TabelaDeDespesas[[#This Row],[Projetada]]-TabelaDeDespesas[[#This Row],[Real]]","v":{"v":28,"d":"R$ 28.00"}}]
[null,"Entretenimento","Shows",{"v":64,"d":"R$ 64.00"},{"v":21,"d":"R$ 21.00"},{"$f":"TabelaDeDespesas[[#This Row],[Projetada]]-TabelaDeDespesas[[#This Row],[Real]]","v":{"v":43,"d":"R$ 43.00"}}]
[null,"Entretenimento","Eventos esportivos",{"v":47,"d":"R$ 47.00"},{"v":57,"d":"R$ 57.00"},{"$f":"TabelaDeDespesas[[#This Row],[Projetada]]-TabelaDeDespesas[[#This Row],[Real]]","v":{"v":-10,"d":"-R$ 10.00"}}]
[null,"Entretenimento","Teatro ao vivo",{"v":28,"d":"R$ 28.00"},{"v":1,"d":"R$ 1.00"},{"$f":"TabelaDeDespesas[[#This Row],[Projetada]]-TabelaDeDespesas[[#This Row],[Real]]","v":{"v":27,"d":"R$ 27.00"}}]
[null,"Entretenimento","Outros",{"v":13,"d":"R$ 13.00"},{"v":42,"d":"R$ 42.00"},{"$f":"TabelaDeDespesas[[#This Row],[Projetada]]-TabelaDeDespesas[[#This Row],[Real]]","v":{"v":-29,"d":"-R$ 29.00"}}]
[null,"Empréstimos","Pessoal",{"v":65,"d":"R$ 65.00"},{"v":6,"d":"R$ 6.00"},{"$f":"TabelaDeDespesas[[#This Row],[Projetada]]-TabelaDeDespesas[[#This Row],[Real]]","v":{"v":59,"d":"R$ 59.00"}}]
[null,"Empréstimos","Estudante",{"v":100,"d":"R$ 100.00"},{"v":36,"d":"R$ 36.00"},{"$f":"TabelaDeDespesas[[#This Row],[Projetada]]-TabelaDeDespesas[[#This Row],[Real]]","v":{"v":64,"d":"R$ 64.00"}}]
[null,"Empréstimos","Cartão de crédito",{"v":29,"d":"R$ 29.00"},{"v":69,"d":"R$ 69.00"},{"$f":"TabelaDeDespesas[[#This Row],[Projetada]]-TabelaDeDespesas[[#This Row],[Real]]","v":{"v":-40,"d":"-R$ 40.00"}}]
[null,"Empréstimos","Cartão de crédito",{"v":64,"d":"R$ 64.00"},{"v":3,"d":"R$ 3.00"},{"$f":"TabelaDeDespesas[[#This Row],[Projetada]]-TabelaDeDespesas[[#This Row],[Real]]","v":{"v":61,"d":"R$ 61.00"}}]
[null,"Empréstimos","Cartão de crédito",{"v":34,"d":"R$ 34.00"},{"v":35,"d":"R$ 35.00"},{"$f":"TabelaDeDespesas[[#This Row],[Projetada]]-TabelaDeDespesas[[#This Row],[Real]]","v":{"v":-1,"d":"-R$ 1.00"}}]
[null,"Empréstimos","Outros",{"v":38,"d":"R$ 38.00"},{"v":52,"d":"R$ 52.00"},{"$f":"TabelaDeDespesas[[#This Row],[Projetada]]-TabelaDeDespesas[[#This Row],[Real]]","v":{"v":-14,"d":"-R$ 14.00"}}]
[null,"Impostos","Federal",{"v":84,"d":"R$ 84.00"},{"v":36,"d":"R$ 36.00"},{"$f":"TabelaDeDespesas[[#This Row],[Projetada]]-TabelaDeDespesas[[#This Row],[Real]]","v":{"v":48,"d":"R$ 48.00"}}]
[null,"Impostos","Estadual",{"v":2,"d":"R$ 2.00"},{"v":83,"d":"R$ 83.00"},{"$f":"TabelaDeDespesas[[#This Row],[Projetada]]-TabelaDeDespesas[[#This Row],[Real]]","v":{"v":-81,"d":"-R$ 81.00"}}]
[null,"Impostos","Local",{"v":40,"d":"R$ 40.00"},{"v":20,"d":"R$ 20.00"},{"$f":"TabelaDeDespesas[[#This Row],[Projetada]]-TabelaDeDespesas[[#This Row],[Real]]","v":{"v":20,"d":"R$ 20.00"}}]
[null,"Impostos","Outros",{"v":35,"d":"R$ 35.00"},{"v":72,"d":"R$ 72.00"},{"$f":"TabelaDeDespesas[[#This Row],[Projetada]]-TabelaDeDespesas[[#This Row],[Real]]","v":{"v":-37,"d":"-R$ 37.00"}}]
[null,"Poupanças ou investimentos","Conta de aposentadoria",{"v":34,"d":"R$ 34.00"},{"v":20,"d":"R$ 20.00"},{"$f":"TabelaDeDespesas[[#This Row],[Projetada]]-TabelaDeDespesas[[#This Row],[Real]]","v":{"v":14,"d":"R$ 14.00"}}]
[null,"Poupanças ou investimentos","Conta de investimento",{"v":68,"d":"R$ 68.00"},{"v":98,"d":"R$ 98.00"},{"$f":"TabelaDeDespesas[[#This Row],[Projetada]]-TabelaDeDespesas[[#This Row],[Real]]","v":{"v":-30,"d":"-R$ 30.00"}}]
[null,"Poupanças ou investimentos","Faculdade",{"v":89,"d":"R$ 89.00"},{"v":68,"d":"R$ 68.00"},{"$f":"TabelaDeDespesas[[#This Row],[Projetada]]-TabelaDeDespesas[[#This Row],[Real]]","v":{"v":21,"d":"R$ 21.00"}}]
[null,"Poupanças ou investimentos","Outros",{"v":82,"d":"R$ 82.00"},{"v":26,"d":"R$ 26.00"},{"$f":"TabelaDeDespesas[[#This Row],[Projetada]]-TabelaDeDespesas[[#This Row],[Real]]","v":{"v":56,"d":"R$ 56.00"}}]
[null,"Presentes e doações","Instituição beneficente 1",{"v":41,"d":"R$ 41.00"},{"v":85,"d":"R$ 85.00"},{"$f":"TabelaDeDespesas[[#This Row],[Projetada]]-TabelaDeDespesas[[#This Row],[Real]]","v":{"v":-44,"d":"-R$ 44.00"}}]
[null,"Presentes e doações","Instituição beneficente 2",{"v":0,"d":"R$ 0.00"},{"v":69,"d":"R$ 69.00"},{"$f":"TabelaDeDespesas[[#This Row],[Projetada]]-TabelaDeDespesas[[#This Row],[Real]]","v":{"v":-69,"d":"-R$ 69.00"}}]
[null,"Presentes e doações","Instituição beneficente 3",{"v":2,"d":"R$ 2.00"},{"v":57,"d":"R$ 57.00"},{"$f":"TabelaDeDespesas[[#This Row],[Projetada]]-TabelaDeDespesas[[#This Row],[Real]]","v":{"v":-55,"d":"-R$ 55.00"}}]
[null,"Assessoria jurídica","Advogado",{"v":7,"d":"R$ 7.00"},{"v":98,"d":"R$ 98.00"},{"$f":"TabelaDeDespesas[[#This Row],[Projetada]]-TabelaDeDespesas[[#This Row],[Real]]","v":{"v":-91,"d":"-R$ 91.00"}}]
[null,"Assessoria jurídica","Pensão",{"v":39,"d":"R$ 39.00"},{"v":85,"d":"R$ 85.00"},{"$f":"TabelaDeDespesas[[#This Row],[Projetada]]-TabelaDeDespesas[[#This Row],[Real]]","v":{"v":-46,"d":"-R$ 46.00"}}]
[null,"Assessoria jurídica","Pagamentos em garantia ou julgamento",{"v":78,"d":"R$ 78.00"},{"v":84,"d":"R$ 84.00"},{"$f":"TabelaDeDespesas[[#This Row],[Projetada]]-TabelaDeDespesas[[#This Row],[Real]]","v":{"v":-6,"d":"-R$ 6.00"}}]
[null,"Assessoria jurídica","Outros",{"v":93,"d":"R$ 93.00"},{"v":71,"d":"R$ 71.00"},{"$f":"TabelaDeDespesas[[#This Row],[Projetada]]-TabelaDeDespesas[[#This Row],[Real]]","v":{"v":22,"d":"R$ 22.00"}}]
[null,"Total",{"$nulls":3},{"$f":"SUBTOTAL(109,TabelaDeDespesas[Diferença])","v":{"v":-117,"d":"-R$ 117.00"}}]